[Event "*** Titled Tuesday Blitz"]
[Site "Chess.com"]
[Date "2020.05.26"]
[Round "3"]
[White "MMKZH22"]
[Black "levallem"]
[Result "0-1"]
[WhiteElo "2303"]
[BlackElo "2156"]
[TimeControl "180+1"]
[EndTime "10:29:14 PDT"]
[Termination "levallem won by resignation"]

1. Nf3 {[%clk 0:03:00.9]} 1... d5 {[%clk 0:02:58.8]} 2. d4 {[%clk 0:03:00.7]}
2... Nf6 {[%clk 0:02:59.3]} 3. c4 {[%clk 0:03:01.1]} 3... c6 {[%clk 0:02:59.6]}
4. Nc3 {[%clk 0:03:01.5]} 4... g6 {[%clk 0:02:54.7]} 5. cxd5 {[%clk 0:02:53.9]}
5... cxd5 {[%clk 0:02:53.9]} 6. Bf4 {[%clk 0:02:54.4]} 6... Bg7 {[%clk 0:02:54]}
7. e3 {[%clk 0:02:54.7]} 7... Nc6 {[%clk 0:02:53.3]} 8. Bd3 {[%clk 0:02:54.9]}
8... Nh5 {[%clk 0:02:46.7]} 9. Bg5 {[%clk 0:02:48.4]} 9... h6 {[%clk 0:02:46.2]}
10. Bh4 {[%clk 0:02:48.4]} 10... O-O {[%clk 0:02:43.7]} 11. O-O {[%clk
0:02:47.6]} 11... Be6 {[%clk 0:02:32.8]} 12. Rc1 {[%clk 0:02:42.9]} 12... Rc8
{[%clk 0:02:27.7]} 13. Na4 {[%clk 0:02:41.2]} 13... Bg4 {[%clk 0:02:08.9]} 14.
h3 {[%clk 0:02:18.7]} 14... Bxf3 {[%clk 0:02:08.5]} 15. Qxf3 {[%clk 0:02:18.7]}
15... Qd6 {[%clk 0:01:43.5]} 16. g4 {[%clk 0:02:00.8]} 16... Nf6 {[%clk
0:01:42.7]} 17. Nc3 {[%clk 0:01:27.9]} 17... Rfd8 {[%clk 0:01:31.2]} 18. Bg3
{[%clk 0:01:10.4]} 18... Qb4 {[%clk 0:01:21]} 19. Rc2 {[%clk 0:01:04.8]} 19...
e6 {[%clk 0:01:16.3]} 20. h4 {[%clk 0:00:54.9]} 20... a6 {[%clk 0:01:07.2]} 21.
h5 {[%clk 0:00:55.1]} 21... g5 {[%clk 0:00:57]} 22. Qe2 {[%clk 0:00:47.6]} 22...
Qe7 {[%clk 0:00:53.7]} 23. f4 {[%clk 0:00:43.9]} 23... gxf4 {[%clk 0:00:44.8]}
24. Bxf4 {[%clk 0:00:37]} 24... Nd7 {[%clk 0:00:36.5]} 25. Qg2 {[%clk
0:00:23.3]} 25... Nb4 {[%clk 0:00:35.5]} 26. Rd2 {[%clk 0:00:19.3]} 26... Nxd3
{[%clk 0:00:35.5]} 27. Rxd3 {[%clk 0:00:19.8]} 27... f6 {[%clk 0:00:32.6]} 28.
Rd2 {[%clk 0:00:18.9]} 28... Nf8 {[%clk 0:00:32.6]} 29. Rdf2 {[%clk 0:00:18.1]}
29... Nh7 {[%clk 0:00:32.5]} 30. Bg3 {[%clk 0:00:16.9]} 30... Rc6 {[%clk
0:00:31.5]} 31. Bh4 {[%clk 0:00:16.5]} 31... Rf8 {[%clk 0:00:31.4]} 32. e4
{[%clk 0:00:16]} 32... dxe4 {[%clk 0:00:26.4]} 33. Nxe4 {[%clk 0:00:16.2]} 33...
Ng5 {[%clk 0:00:25.8]} 34. Bxg5 {[%clk 0:00:11.9]} 34... fxg5 {[%clk 0:00:26.3]}
35. Rd2 {[%clk 0:00:09.6]} 35... Rxf1+ {[%clk 0:00:25.1]} 36. Qxf1 {[%clk
0:00:09.5]} 36... Rc8 {[%clk 0:00:23.3]} 37. Qe2 {[%clk 0:00:08.8]} 37... Rd8
{[%clk 0:00:23]} 38. Qe3 {[%clk 0:00:08]} 38... Rd5 {[%clk 0:00:20.5]} 39. Nc5
{[%clk 0:00:07.5]} 39... a5 {[%clk 0:00:17.9]} 40. Qxe6+ {[%clk 0:00:07.1]}
40... Qxe6 {[%clk 0:00:17.3]} 41. Nxe6 {[%clk 0:00:08]} 41... Bf6 {[%clk
0:00:17.3]} 42. Rf2 {[%clk 0:00:06]} 42... Bxd4 {[%clk 0:00:16.1]} 43. Nxd4
{[%clk 0:00:05.9]} 43... Rxd4 {[%clk 0:00:17]} 44. Rg2 {[%clk 0:00:05.5]} 44...
Kf7 {[%clk 0:00:17]} 45. Kf1 {[%clk 0:00:05.9]} 45... Ke6 {[%clk 0:00:17.2]} 46.
Ke2 {[%clk 0:00:06.5]} 46... Ke5 {[%clk 0:00:17.6]} 47. Ke3 {[%clk 0:00:07]}
47... Re4+ {[%clk 0:00:17.7]} 48. Kd3 {[%clk 0:00:07.2]} 48... Rb4 {[%clk
0:00:17.1]} 49. b3 {[%clk 0:00:07.1]} 49... Kf4 {[%clk 0:00:16.9]} 50. Kc3
{[%clk 0:00:07.2]} 50... Re4 {[%clk 0:00:17.1]} 51. Kd3 {[%clk 0:00:07.1]} 51...
Re3+ {[%clk 0:00:17.3]} 52. Kc4 {[%clk 0:00:07.4]} 52... Rg3 {[%clk 0:00:17.8]}
53. Rf2+ {[%clk 0:00:07.6]} 53... Kxg4 {[%clk 0:00:17.6]} 54. Kb5 {[%clk
0:00:08.2]} 54... Kxh5 {[%clk 0:00:17.2]} 55. Kxa5 {[%clk 0:00:08.7]} 55... Re3
{[%clk 0:00:16.6]} 56. Kb6 {[%clk 0:00:08.6]} 56... Re7 {[%clk 0:00:16.8]} 57.
a4 {[%clk 0:00:08.8]} 57... Kg6 {[%clk 0:00:16.9]} 58. b4 {[%clk 0:00:09.2]}
58... g4 {[%clk 0:00:17.4]} 59. a5 {[%clk 0:00:09.7]} 59... h5 {[%clk
0:00:17.8]} 60. b5 {[%clk 0:00:09.5]} 60... Kg5 {[%clk 0:00:17.7]} 61. a6 {[%clk
0:00:10]} 61... bxa6 {[%clk 0:00:18.3]} 62. bxa6 {[%clk 0:00:10.5]} 62... g3
{[%clk 0:00:18.8]} 63. Rf8 {[%clk 0:00:09.4]} 63... h4 {[%clk 0:00:18.8]} 64.
Rg8+ {[%clk 0:00:09.6]} 64... Kf4 {[%clk 0:00:18.2]} 65. a7 {[%clk 0:00:10.1]}
65... Rxa7 {[%clk 0:00:17.8]} 66. Kxa7 {[%clk 0:00:10.3]} 66... h3 {[%clk
0:00:18.3]} 67. Kb6 {[%clk 0:00:10.6]} 67... h2 {[%clk 0:00:18]} 68. Rh8 {[%clk
0:00:10.3]} 68... g2 {[%clk 0:00:17.4]} 69. Rf8+ {[%clk 0:00:10.5]} 69... Ke3
{[%clk 0:00:17.3]} 70. Re8+ {[%clk 0:00:10.9]} 70... Kd2 {[%clk 0:00:15.5]} 71.
Rd8+ {[%clk 0:00:10.2]} 71... Kc3 {[%clk 0:00:15.4]} 72. Rc8+ {[%clk 0:00:10.6]}
72... Kb3 {[%clk 0:00:15.1]} 0-1

[Event "*** Titled Tuesday Blitz"]
[Site "Chess.com"]
[Date "2020.05.26"]
[Round "3"]
[White "politeplayer"]
[Black "Omk124"]
[Result "0-1"]
[WhiteElo "2180"]
[BlackElo "2403"]
[TimeControl "180+1"]
[EndTime "10:29:15 PDT"]
[Termination "Omk124 won by resignation"]

1. e4 {[%clk 0:03:00.9]} 1... c5 {[%clk 0:02:59.9]} 2. d4 {[%clk 0:03:00.2]}
2... cxd4 {[%clk 0:03:00]} 3. c3 {[%clk 0:03:00.7]} 3... d3 {[%clk 0:03:00.2]}
4. Bxd3 {[%clk 0:02:59.9]} 4... Nc6 {[%clk 0:03:00]} 5. Nf3 {[%clk 0:02:58.7]}
5... g6 {[%clk 0:02:58.7]} 6. c4 {[%clk 0:02:57.2]} 6... Bg7 {[%clk 0:02:58.1]}
7. O-O {[%clk 0:02:53.1]} 7... d6 {[%clk 0:02:57.7]} 8. h3 {[%clk 0:02:52.7]}
8... Nf6 {[%clk 0:02:57.8]} 9. Nc3 {[%clk 0:02:52.4]} 9... O-O {[%clk 0:02:58]}
10. Be3 {[%clk 0:02:52.6]} 10... Nd7 {[%clk 0:02:55.2]} 11. Rc1 {[%clk 0:02:49]}
11... Nde5 {[%clk 0:02:34.9]} 12. Nxe5 {[%clk 0:02:44.2]} 12... Nxe5 {[%clk
0:02:35.8]} 13. f4 {[%clk 0:02:36]} 13... Nc6 {[%clk 0:02:34.9]} 14. Bb1 {[%clk
0:02:26.1]} 14... f5 {[%clk 0:02:28.2]} 15. exf5 {[%clk 0:02:22]} 15... Bxf5
{[%clk 0:02:29.1]} 16. Bxf5 {[%clk 0:02:17.1]} 16... Rxf5 {[%clk 0:02:30]} 17.
g4 {[%clk 0:02:06.9]} 17... Rf7 {[%clk 0:02:26.4]} 18. Qd5 {[%clk 0:02:00.2]}
18... Qd7 {[%clk 0:02:06.7]} 19. Ne4 {[%clk 0:01:55]} 19... Rf8 {[%clk
0:01:17.4]} 20. Nc5 {[%clk 0:01:43]} 20... Qc8 {[%clk 0:01:06.2]} 21. Ne6 {[%clk
0:01:42.3]} 21... Re8 {[%clk 0:01:04.8]} 22. Ng5 {[%clk 0:01:36.9]} 22... e6
{[%clk 0:01:03.9]} 23. Qxd6 {[%clk 0:01:31.9]} 23... Rd7 {[%clk 0:01:04]} 24.
Qa3 {[%clk 0:01:29]} 24... Red8 {[%clk 0:00:58.9]} 25. Rce1 {[%clk 0:01:04.4]}
25... Rd3 {[%clk 0:00:57.7]} 26. b3 {[%clk 0:00:56.9]} 26... h6 {[%clk
0:00:55.4]} 27. Nf3 {[%clk 0:00:53.8]} 27... Qd7 {[%clk 0:00:53.3]} 28. Qc1
{[%clk 0:00:45]} 28... Rc3 {[%clk 0:00:51.3]} 29. Qb1 {[%clk 0:00:26.8]} 29...
Qd3 {[%clk 0:00:47.8]} 30. Qxd3 {[%clk 0:00:21.9]} 30... Rdxd3 {[%clk
0:00:48.7]} 31. Kf2 {[%clk 0:00:18.4]} 31... Nd4 {[%clk 0:00:43.1]} 32. Nxd4
{[%clk 0:00:16]} 32... Bxd4 {[%clk 0:00:31.3]} 33. Bxd4 {[%clk 0:00:15.4]} 33...
Rxd4 {[%clk 0:00:32.2]} 34. Rxe6 {[%clk 0:00:15.3]} 34... Rxh3 {[%clk
0:00:29.8]} 35. f5 {[%clk 0:00:13.3]} 35... gxf5 {[%clk 0:00:28.8]} 36. gxf5
{[%clk 0:00:11.8]} 36... Rd2+ {[%clk 0:00:26.6]} 37. Kg1 {[%clk 0:00:11.1]}
37... Rg3+ {[%clk 0:00:24.5]} 38. Kh1 {[%clk 0:00:11.4]} 38... Rh3+ {[%clk
0:00:24.6]} 39. Kg1 {[%clk 0:00:11.3]} 39... Kf7 {[%clk 0:00:25.2]} 40. Rg6
{[%clk 0:00:08.9]} 40... Rxa2 {[%clk 0:00:25.1]} 41. Rg2 {[%clk 0:00:08.7]}
41... Rxg2+ {[%clk 0:00:24.7]} 42. Kxg2 {[%clk 0:00:08.9]} 42... Rxb3 {[%clk
0:00:25.6]} 43. Rd1 {[%clk 0:00:09]} 43... Kf6 {[%clk 0:00:25.9]} 44. Rd6+
{[%clk 0:00:08.8]} 44... Kxf5 {[%clk 0:00:26.6]} 45. Rxh6 {[%clk 0:00:09.4]}
45... Ke5 {[%clk 0:00:27.3]} 46. c5 {[%clk 0:00:08.9]} 46... Kd5 {[%clk
0:00:27.5]} 47. c6 {[%clk 0:00:09.3]} 47... bxc6 {[%clk 0:00:28]} 48. Kf2 {[%clk
0:00:09.6]} 48... Kc5 {[%clk 0:00:23.9]} 49. Ke2 {[%clk 0:00:09.5]} 49... Kb5
{[%clk 0:00:24.2]} 50. Kd2 {[%clk 0:00:09.7]} 50... a5 {[%clk 0:00:22]} 51. Kc2
{[%clk 0:00:09.8]} 51... Rb4 {[%clk 0:00:22.4]} 52. Rh5+ {[%clk 0:00:09.5]}
52... c5 {[%clk 0:00:23]} 53. Rh8 {[%clk 0:00:08.7]} 53... Rg4 {[%clk
0:00:22.8]} 54. Rb8+ {[%clk 0:00:08]} 54... Kc4 {[%clk 0:00:23.3]} 55. Ra8
{[%clk 0:00:07.7]} 55... Rg2+ {[%clk 0:00:23.1]} 56. Kb1 {[%clk 0:00:08.1]}
56... Kb3 {[%clk 0:00:22.8]} 57. Rb8+ {[%clk 0:00:06.8]} 57... Ka3 {[%clk
0:00:23.3]} 58. Rb5 {[%clk 0:00:05.4]} 58... c4 {[%clk 0:00:23.5]} 59. Rxa5+
{[%clk 0:00:05]} 59... Kb3 {[%clk 0:00:24.1]} 60. Rb5+ {[%clk 0:00:05.1]} 60...
Kc3 {[%clk 0:00:24.7]} 61. Rb8 {[%clk 0:00:04.9]} 61... Rg1+ {[%clk 0:00:25.2]}
62. Ka2 {[%clk 0:00:05.2]} 62... Kc2 {[%clk 0:00:25.9]} 63. Rf8 {[%clk
0:00:05.1]} 63... c3 {[%clk 0:00:26.6]} 64. Rf2+ {[%clk 0:00:04.8]} 64... Kd3
{[%clk 0:00:23.7]} 65. Rf3+ {[%clk 0:00:04.8]} 65... Kd2 {[%clk 0:00:24.2]} 66.
Rf2+ {[%clk 0:00:04.9]} 66... Ke3 {[%clk 0:00:22.9]} 67. Rc2 {[%clk 0:00:03.7]}
67... Kd3 {[%clk 0:00:22.8]} 68. Kb3 {[%clk 0:00:03.7]} 68... Rb1+ {[%clk
0:00:22.4]} 0-1

[Event "*** Titled Tuesday Blitz"]
[Site "Chess.com"]
[Date "2020.05.26"]
[Round "3"]
[White "ManuDavid2910"]
[Black "Sibelephant"]
[Result "0-1"]
[WhiteElo "2698"]
[BlackElo "3173"]
[TimeControl "180+1"]
[EndTime "10:29:20 PDT"]
[Termination "Sibelephant won by resignation"]

1. e4 {[%clk 0:03:00.9]} 1... c5 {[%clk 0:02:58.6]} 2. Nf3 {[%clk 0:03:01.2]}
2... e6 {[%clk 0:02:59.1]} 3. Nc3 {[%clk 0:03:01.3]} 3... Nc6 {[%clk 0:02:58.7]}
4. g3 {[%clk 0:03:01.4]} 4... a6 {[%clk 0:02:47.6]} 5. Bg2 {[%clk 0:03:01]} 5...
Nf6 {[%clk 0:02:42.9]} 6. O-O {[%clk 0:02:59]} 6... d6 {[%clk 0:02:43.1]} 7. Re1
{[%clk 0:02:58.6]} 7... e5 {[%clk 0:02:40.8]} 8. h3 {[%clk 0:02:58.4]} 8... g6
{[%clk 0:02:40.1]} 9. d3 {[%clk 0:02:57.4]} 9... Bg7 {[%clk 0:02:40.3]} 10. Be3
{[%clk 0:02:54.6]} 10... O-O {[%clk 0:02:38.4]} 11. Qd2 {[%clk 0:02:54.5]} 11...
Nd4 {[%clk 0:02:37.9]} 12. Kh2 {[%clk 0:02:36.9]} 12... b5 {[%clk 0:02:19.6]}
13. Nd1 {[%clk 0:02:27.8]} 13... Bb7 {[%clk 0:02:14.9]} 14. c3 {[%clk
0:02:27.4]} 14... Ne6 {[%clk 0:02:05]} 15. Bh6 {[%clk 0:02:24.6]} 15... c4
{[%clk 0:01:57.1]} 16. Bxg7 {[%clk 0:02:12.4]} 16... Kxg7 {[%clk 0:01:57.5]} 17.
dxc4 {[%clk 0:02:01.5]} 17... bxc4 {[%clk 0:01:55.3]} 18. Ne3 {[%clk 0:01:54.7]}
18... Nxe4 {[%clk 0:01:49.7]} 19. Qc2 {[%clk 0:01:54.4]} 19... Qc7 {[%clk
0:01:41.6]} 20. Nxe5 {[%clk 0:01:47.3]} 20... dxe5 {[%clk 0:01:31.2]} 21. Bxe4
{[%clk 0:01:46.6]} 21... Ng5 {[%clk 0:01:30.6]} 22. Bd5 {[%clk 0:01:11.2]} 22...
Bxd5 {[%clk 0:01:05.6]} 23. Nxd5 {[%clk 0:01:08.9]} 23... Nf3+ {[%clk
0:01:00.3]} 24. Kg2 {[%clk 0:01:01.2]} 24... Nxe1+ {[%clk 0:01:00.2]} 25. Rxe1
{[%clk 0:01:01.7]} 25... Qc6 {[%clk 0:00:56.5]} 26. Rxe5 {[%clk 0:01:01.5]}
26... Rae8 {[%clk 0:00:48.3]} 27. Qe4 {[%clk 0:00:59.4]} 27... f6 {[%clk
0:00:37.3]} 28. Rxe8 {[%clk 0:00:33.2]} 28... Rxe8 {[%clk 0:00:37.4]} 29. Qf3
{[%clk 0:00:33.5]} 29... Rb8 {[%clk 0:00:23]} 30. Qe4 {[%clk 0:00:24]} 30... Rb7
{[%clk 0:00:20]} 31. Kf3 {[%clk 0:00:20.4]} 31... h5 {[%clk 0:00:07.4]} 32. g4
{[%clk 0:00:20.3]} 32... hxg4+ {[%clk 0:00:07.1]} 33. hxg4 {[%clk 0:00:21.2]}
33... g5 {[%clk 0:00:07.7]} 34. Ke3 {[%clk 0:00:19.5]} 34... Rd7 {[%clk
0:00:04.9]} 35. Nb4 {[%clk 0:00:16.5]} 35... Qxe4+ {[%clk 0:00:05.1]} 36. Kxe4
{[%clk 0:00:17.4]} 36... Rd2 {[%clk 0:00:05.7]} 37. f4 {[%clk 0:00:17.6]} 37...
gxf4 {[%clk 0:00:04.7]} 38. Kxf4 {[%clk 0:00:18.5]} 38... Rxb2 {[%clk
0:00:04.9]} 39. Nxa6 {[%clk 0:00:18.7]} 39... Rxa2 {[%clk 0:00:05.2]} 40. Nc5
{[%clk 0:00:19]} 40... Rf2+ {[%clk 0:00:03.4]} 41. Ke3 {[%clk 0:00:18.8]} 41...
Rg2 {[%clk 0:00:03.7]} 42. Kf3 {[%clk 0:00:19.1]} 42... Rc2 {[%clk 0:00:04.3]}
43. Ne4 {[%clk 0:00:18.9]} 43... Kg6 {[%clk 0:00:04.8]} 44. Ke3 {[%clk
0:00:17.9]} 44... Rg2 {[%clk 0:00:04.9]} 45. Kf3 {[%clk 0:00:18.1]} 45... Rg1
{[%clk 0:00:05.4]} 46. Kf4 {[%clk 0:00:17.3]} 46... Rd1 {[%clk 0:00:04.2]} 47.
Kf3 {[%clk 0:00:16.7]} 47... Rd3+ {[%clk 0:00:04.4]} 48. Kf4 {[%clk 0:00:17.1]}
48... Kf7 {[%clk 0:00:05]} 49. g5 {[%clk 0:00:15.2]} 49... fxg5+ {[%clk
0:00:05.2]} 50. Nxg5+ {[%clk 0:00:16.1]} 50... Ke7 {[%clk 0:00:05]} 51. Ne4
{[%clk 0:00:17]} 51... Kd8 {[%clk 0:00:02.7]} 52. Ke5 {[%clk 0:00:16.9]} 52...
Kc7 {[%clk 0:00:02.6]} 53. Nc5 {[%clk 0:00:10.5]} 53... Kc6 {[%clk 0:00:03]} 54.
Ne4 {[%clk 0:00:09.2]} 54... Rd5+ {[%clk 0:00:03.5]} 55. Kf4 {[%clk 0:00:09.5]}
55... Kb5 {[%clk 0:00:03.4]} 56. Ke3 {[%clk 0:00:09.3]} 56... Rd3+ {[%clk
0:00:03.5]} 57. Kf4 {[%clk 0:00:09.5]} 57... Rd1 {[%clk 0:00:02.5]} 58. Kf3
{[%clk 0:00:09.6]} 58... Rd8 {[%clk 0:00:03]} 59. Ke3 {[%clk 0:00:09.8]} 59...
Ka4 {[%clk 0:00:03]} 60. Nc5+ {[%clk 0:00:08.6]} 60... Ka3 {[%clk 0:00:03.2]}
61. Ne4 {[%clk 0:00:07.8]} 61... Kb2 {[%clk 0:00:03]} 62. Ke2 {[%clk 0:00:06.8]}
62... Rd3 {[%clk 0:00:02.8]} 63. Nd2 {[%clk 0:00:05.1]} 63... Kxc3 {[%clk
0:00:02.8]} 64. Ne4+ {[%clk 0:00:05.4]} 64... Kc2 {[%clk 0:00:03.5]} 65. Nd2
{[%clk 0:00:05.9]} 65... Rxd2+ {[%clk 0:00:03.7]} 0-1

[Event "*** Titled Tuesday Blitz"]
[Site "Chess.com"]
[Date "2020.05.26"]
[Round "3"]
[White "binbin239"]
[Black "hitaman"]
[Result "0-1"]
[WhiteElo "2399"]
[BlackElo "2600"]
[TimeControl "180+1"]
[EndTime "10:29:27 PDT"]
[Termination "hitaman won by checkmate"]

1. d4 {[%clk 0:03:00.4]} 1... d5 {[%clk 0:02:54]} 2. c4 {[%clk 0:02:58.3]} 2...
c6 {[%clk 0:02:54.2]} 3. Nf3 {[%clk 0:02:56.8]} 3... Nf6 {[%clk 0:02:54.1]} 4.
Qc2 {[%clk 0:02:53]} 4... g6 {[%clk 0:02:52.6]} 5. Bf4 {[%clk 0:02:51.2]} 5...
Bg7 {[%clk 0:02:48.6]} 6. g3 {[%clk 0:02:48.2]} 6... O-O {[%clk 0:02:46.8]} 7.
Bg2 {[%clk 0:02:48.4]} 7... Bf5 {[%clk 0:02:46.5]} 8. Qb3 {[%clk 0:02:48.4]}
8... Qb6 {[%clk 0:02:46.1]} 9. Nbd2 {[%clk 0:02:44.3]} 9... Qxb3 {[%clk
0:02:38.2]} 10. axb3 {[%clk 0:02:44]} 10... Na6 {[%clk 0:02:35.7]} 11. O-O
{[%clk 0:02:43.4]} 11... Nb4 {[%clk 0:02:35]} 12. Be5 {[%clk 0:02:30.7]} 12...
Rfd8 {[%clk 0:02:19]} 13. Ra4 {[%clk 0:02:18.1]} 13... Na6 {[%clk 0:02:18.9]}
14. Rc1 {[%clk 0:02:07.2]} 14... Ne4 {[%clk 0:02:13.9]} 15. Bxg7 {[%clk
0:02:05.5]} 15... Kxg7 {[%clk 0:02:14.8]} 16. e3 {[%clk 0:01:53.3]} 16... Nc7
{[%clk 0:01:55.4]} 17. Rca1 {[%clk 0:01:28.2]} 17... a6 {[%clk 0:01:55.1]} 18.
Rd1 {[%clk 0:01:22.3]} 18... Rac8 {[%clk 0:01:48.9]} 19. Ne5 {[%clk 0:01:21.3]}
19... Nxd2 {[%clk 0:01:46.6]} 20. Rxd2 {[%clk 0:01:21.4]} 20... f6 {[%clk
0:01:47.2]} 21. Nd3 {[%clk 0:01:17.9]} 21... b5 {[%clk 0:01:37.1]} 22. Ra1
{[%clk 0:01:12.2]} 22... Bxd3 {[%clk 0:01:14.1]} 23. Rxd3 {[%clk 0:01:11.9]}
23... dxc4 {[%clk 0:01:15]} 24. bxc4 {[%clk 0:01:11.3]} 24... c5 {[%clk
0:01:15.7]} 25. b3 {[%clk 0:00:57.1]} 25... e5 {[%clk 0:01:11]} 26. d5 {[%clk
0:00:56.3]} 26... Rd6 {[%clk 0:01:07.6]} 27. Rc3 {[%clk 0:00:48.1]} 27... Ne8
{[%clk 0:00:39.7]} 28. Bh3 {[%clk 0:00:45.3]} 28... Rc7 {[%clk 0:00:25.5]} 29.
cxb5 {[%clk 0:00:40.9]} 29... axb5 {[%clk 0:00:25.5]} 30. Ra8 {[%clk 0:00:40.9]}
30... Kf7 {[%clk 0:00:24.2]} 31. Be6+ {[%clk 0:00:39.5]} 31... Ke7 {[%clk
0:00:24.4]} 32. e4 {[%clk 0:00:35.3]} 32... Rd8 {[%clk 0:00:15.8]} 33. Ra5
{[%clk 0:00:33]} 33... Nd6 {[%clk 0:00:15.2]} 34. g4 {[%clk 0:00:31]} 34... Nxe4
{[%clk 0:00:14.9]} 35. Rh3 {[%clk 0:00:28.3]} 35... Ng5 {[%clk 0:00:13.2]} 36.
Rc3 {[%clk 0:00:28.5]} 36... Nxe6 {[%clk 0:00:13.1]} 37. dxe6 {[%clk 0:00:28.5]}
37... Kxe6 {[%clk 0:00:13.6]} 38. Rxb5 {[%clk 0:00:28.7]} 38... Rd4 {[%clk
0:00:10.4]} 39. h3 {[%clk 0:00:27.5]} 39... Kd5 {[%clk 0:00:10.5]} 40. Rb6
{[%clk 0:00:26.8]} 40... Rc6 {[%clk 0:00:09.7]} 41. Rb7 {[%clk 0:00:27.1]} 41...
h5 {[%clk 0:00:10.2]} 42. gxh5 {[%clk 0:00:23.8]} 42... gxh5 {[%clk 0:00:11.1]}
43. Rd7+ {[%clk 0:00:22.4]} 43... Ke4 {[%clk 0:00:11.1]} 44. Rh7 {[%clk
0:00:22.3]} 44... Rd3 {[%clk 0:00:10.4]} 45. Rc4+ {[%clk 0:00:21.7]} 45... Kf3
{[%clk 0:00:09.8]} 46. Rxh5 {[%clk 0:00:18.7]} 46... Rxb3 {[%clk 0:00:09.3]} 47.
Rf5+ {[%clk 0:00:18.5]} 47... Ke2 {[%clk 0:00:09.9]} 48. h4 {[%clk 0:00:16.6]}
48... Rb1+ {[%clk 0:00:09.9]} 49. Kg2 {[%clk 0:00:16.5]} 49... Kd3 {[%clk
0:00:10.8]} 50. Rg4 {[%clk 0:00:16]} 50... c4 {[%clk 0:00:11]} 51. Rg3+ {[%clk
0:00:15.7]} 51... Kd2 {[%clk 0:00:11.2]} 52. Rg6 {[%clk 0:00:11.9]} 52... c3
{[%clk 0:00:11.2]} 53. Rgxf6 {[%clk 0:00:12.7]} 53... Rxf6 {[%clk 0:00:10.9]}
54. Rxf6 {[%clk 0:00:13.2]} 54... c2 {[%clk 0:00:11.3]} 55. Rd6+ {[%clk
0:00:13.6]} 55... Ke2 {[%clk 0:00:11.7]} 56. Rc6 {[%clk 0:00:13.6]} 56... c1=Q
{[%clk 0:00:12.6]} 57. Rxc1 {[%clk 0:00:13.7]} 57... Rxc1 {[%clk 0:00:13.5]} 58.
h5 {[%clk 0:00:14.1]} 58... Rc8 {[%clk 0:00:10.6]} 59. Kg3 {[%clk 0:00:14.2]}
59... Rg8+ {[%clk 0:00:10.9]} 60. Kh4 {[%clk 0:00:14.8]} 60... Kxf2 {[%clk
0:00:11.2]} 61. h6 {[%clk 0:00:15.4]} 61... Rh8 {[%clk 0:00:11.1]} 62. Kh5
{[%clk 0:00:15.7]} 62... e4 {[%clk 0:00:11.4]} 63. Kg6 {[%clk 0:00:16]} 63... e3
{[%clk 0:00:11.7]} 64. Kg7 {[%clk 0:00:16.4]} 64... Rxh6 {[%clk 0:00:12.2]} 65.
Kxh6 {[%clk 0:00:16.9]} 65... e2 {[%clk 0:00:13.1]} 66. Kg5 {[%clk 0:00:17.5]}
66... e1=R {[%clk 0:00:12.7]} 67. Kf4 {[%clk 0:00:18.4]} 67... Re2 {[%clk
0:00:12.2]} 68. Kg4 {[%clk 0:00:18.8]} 68... Re4+ {[%clk 0:00:12]} 69. Kf5
{[%clk 0:00:19.3]} 69... Kf3 {[%clk 0:00:12.9]} 70. Kg5 {[%clk 0:00:19.7]} 70...
Re5+ {[%clk 0:00:12.9]} 71. Kf6 {[%clk 0:00:20.1]} 71... Kf4 {[%clk 0:00:13.1]}
72. Kg6 {[%clk 0:00:20.7]} 72... Re6+ {[%clk 0:00:12.9]} 73. Kh5 {[%clk
0:00:20.8]} 73... Rf6 {[%clk 0:00:12.7]} 74. Kh4 {[%clk 0:00:20.6]} 74... Rh6#
{[%clk 0:00:13.6]} 0-1